[Event "Titled Tuesday Blitz June 14 Late 2022"]
[White "Bryakin, Mikhail"]
[Black "Ibarra Jerez, Jose Carlos"]
[WhiteFideId "4165314"]
[BlackFideId "2226332"]
[WhiteElo "2417"]
[BlackElo "2628"]
[Result "0-1"]
[Round "09"]
[TimeControl "180+1"]
[Date "2022.06.14"]
[WhiteClock "0:00:05"]
[BlackClock "0:00:28"]

1. e4 {[%clk 0:03:00]}  Nc6 {[%clk 0:02:57]} 2. Nf3 {[%clk 0:02:55]}  d6 {[%clk 0:02:57]} 3. d4 {[%clk 0:02:50]}  Nf6 {[%clk 0:02:58]} 4. Nc3 {[%clk 0:02:47]}  g6 {[%clk 0:02:58]} 5. h3 {[%clk 0:02:44]}  Bg7 {[%clk 0:02:58]} 6. Be3 {[%clk 0:02:44]}  O-O {[%clk 0:02:56]} 7. Be2 {[%clk 0:02:33]}  a6 {[%clk 0:02:55]} 8. a4 {[%clk 0:02:31]}  e6 {[%clk 0:02:49]} 9. O-O {[%clk 0:02:31]}  b6 {[%clk 0:02:49]} 10. Qd2 {[%clk 0:02:22]}  Bb7 {[%clk 0:02:47]} 11. Bh6 {[%clk 0:02:21]}  Nb4 {[%clk 0:02:41]} 12. Bxg7 {[%clk 0:02:20]}  Kxg7 {[%clk 0:02:42]} 13. Bd3 {[%clk 0:02:06]}  c5 {[%clk 0:02:40]} 14. Rfe1 {[%clk 0:02:03]}  cxd4 {[%clk 0:02:31]} 15. Nxd4 {[%clk 0:02:02]}  Rc8 {[%clk 0:02:28]} 16. Rad1 {[%clk 0:01:55]}  Qc7 {[%clk 0:02:17]} 17. Nf3 {[%clk 0:01:46]}  Rfd8 {[%clk 0:02:11]} 18. Bf1 {[%clk 0:01:39]}  Qc5 {[%clk 0:02:07]} 19. Bd3 {[%clk 0:01:34]}  h6 {[%clk 0:01:57]} 20. Qf4 {[%clk 0:01:33]}  e5 {[%clk 0:01:55]} 21. Qd2 {[%clk 0:01:32]}  Nh5 {[%clk 0:01:50]} 22. Bf1 {[%clk 0:01:26]}  Nf4 {[%clk 0:01:48]} 23. g3 {[%clk 0:01:25]}  Ne6 {[%clk 0:01:46]} 24. Bg2 {[%clk 0:01:23]}  Nd4 {[%clk 0:01:37]} 25. Rc1 {[%clk 0:01:15]}  b5 {[%clk 0:01:29]} 26. axb5 {[%clk 0:00:59]}  axb5 {[%clk 0:01:29]} 27. Red1 {[%clk 0:01:00]}  Nbxc2 {[%clk 0:01:13]} 28. Nd5 {[%clk 0:00:25]}  Nb3 {[%clk 0:00:54]} 29. Qd3 {[%clk 0:00:05]}  Nxc1 {[%clk 0:00:50]} 30. Rxc1 {[%clk 0:00:05]}  Bxd5 {[%clk 0:00:44]} 31. exd5 {[%clk 0:00:05]}  Nb4 {[%clk 0:00:37]} 32. Rxc5 {[%clk 0:00:05]}  Nxd3 {[%clk 0:00:37]} 33. Rxb5 {[%clk 0:00:06]}  Rb8 {[%clk 0:00:28]} 34. Ra5 {[%clk 0:00:05]}  Ra8 {[%clk 0:00:27]} 35. Rb5 {[%clk 0:00:05]}  Rdb8 {[%clk 0:00:28]} 36. Rxb8 {[%clk 0:00:05]}  Rxb8 {[%clk 0:00:28]} 0-1


[Site "https://www.chess.com"]

[Event "Titled Tuesday Blitz June 14 Late 2022"]
[White "Golubev, Mikhail"]
[Black "Flynn, Jacob"]
[WhiteFideId "14100983"]
[BlackFideId "2509393"]
[WhiteElo "2374"]
[BlackElo "1896"]
[Result "0-1"]
[Round "09"]
[TimeControl "180+1"]
[Date "2022.06.15"]
[WhiteClock "0:00:01"]
[BlackClock "0:00:02"]

1. e4 {[%clk 0:03:00]}  e5 {[%clk 0:02:55]} 2. Nf3 {[%clk 0:03:00]}  Nc6 {[%clk 0:02:56]} 3. Bb5 {[%clk 0:02:59]}  a6 {[%clk 0:02:57]} 4. Ba4 {[%clk 0:02:59]}  Nf6 {[%clk 0:02:57]} 5. O-O {[%clk 0:02:59]}  Be7 {[%clk 0:02:58]} 6. Re1 {[%clk 0:02:58]}  b5 {[%clk 0:02:59]} 7. Bb3 {[%clk 0:02:58]}  O-O {[%clk 0:03:00]} 8. a4 {[%clk 0:02:58]}  Bb7 {[%clk 0:02:59]} 9. Nc3 {[%clk 0:02:50]}  b4 {[%clk 0:02:27]} 10. Nd5 {[%clk 0:02:48]}  d6 {[%clk 0:02:22]} 11. Nxe7+ {[%clk 0:02:40]}  Qxe7 {[%clk 0:02:19]} 12. a5 {[%clk 0:02:40]}  h6 {[%clk 0:02:09]} 13. d3 {[%clk 0:02:38]}  Nd8 {[%clk 0:02:09]} 14. c3 {[%clk 0:02:32]}  bxc3 {[%clk 0:02:06]} 15. bxc3 {[%clk 0:02:33]}  Bc8 {[%clk 0:02:06]} 16. d4 {[%clk 0:02:31]}  Be6 {[%clk 0:01:55]} 17. dxe5 {[%clk 0:02:21]}  Bxb3 {[%clk 0:01:54]} 18. exf6 {[%clk 0:02:05]}  Qe6 {[%clk 0:01:43]} 19. Qd2 {[%clk 0:02:04]}  Qxf6 {[%clk 0:01:38]} 20. e5 {[%clk 0:01:56]}  dxe5 {[%clk 0:01:34]} 21. Ba3 {[%clk 0:01:44]}  Re8 {[%clk 0:01:33]} 22. Qd7 {[%clk 0:01:35]}  Nc6 {[%clk 0:01:07]} 23. Qxc7 {[%clk 0:01:30]}  Rac8 {[%clk 0:01:00]} 24. Qb6 {[%clk 0:01:25]}  Bc4 {[%clk 0:01:00]} 25. Nd2 {[%clk 0:01:22]}  Bd3 {[%clk 0:00:59]} 26. Ne4 {[%clk 0:01:04]}  Bxe4 {[%clk 0:00:43]} 27. Rxe4 {[%clk 0:01:05]}  Ne7 {[%clk 0:00:19]} 28. c4 {[%clk 0:00:45]}  Nf5 {[%clk 0:00:18]} 29. Bb2 {[%clk 0:00:35]}  Re6 {[%clk 0:00:18]} 30. Qb7 {[%clk 0:00:33]}  Rce8 {[%clk 0:00:18]} 31. Ree1 {[%clk 0:00:17]}  Nd4 {[%clk 0:00:18]} 32. Bxd4 {[%clk 0:00:16]}  exd4 {[%clk 0:00:19]} 33. Rxe6 {[%clk 0:00:15]}  Qxe6 {[%clk 0:00:20]} 34. Qb4 {[%clk 0:00:07]}  d3 {[%clk 0:00:14]} 35. h3 {[%clk 0:00:03]}  Qe2 {[%clk 0:00:11]} 36. Qd6 {[%clk 0:00:01]}  d2 {[%clk 0:00:09]} 37. Qd7 {[%clk 0:00:01]}  Re6 {[%clk 0:00:05]} 38. Qc8+ {[%clk 0:00:01]}  Kh7 {[%clk 0:00:05]} 39. Qd7 {[%clk 0:00:02]}  Qe1+ {[%clk 0:00:05]} 40. Kh2 {[%clk 0:00:01]}  Qxa1 {[%clk 0:00:05]} 41. Qd3+ {[%clk 0:00:02]}  g6 {[%clk 0:00:01]} 42. Qxd2 {[%clk 0:00:03]}  Qe5+ {[%clk 0:00:01]} 43. g3 {[%clk 0:00:04]}  Qe2 {[%clk 0:00:01]} 44. Qf4 {[%clk 0:00:03]}  Qe5 {[%clk 0:00:01]} 45. c5 {[%clk 0:00:03]}  Kh8 {[%clk 0:00:02]} 46. Qc4 {[%clk 0:00:01]}  Re7 {[%clk 0:00:02]} 0-1


[Site "https://www.chess.com"]

[Event "Titled Tuesday Blitz June 14 Late 2022"]
[White "Guz, Ari"]
[Black "Zhigalko, Sergei"]
[WhiteFideId "2825759"]
[BlackFideId "13502956"]
[WhiteElo "1913"]
[BlackElo "2662"]
[Result "0-1"]
[Round "09"]
[TimeControl "180+1"]
[Date "2022.06.14"]
[WhiteClock "0:00:32"]
[BlackClock "0:00:08"]

1. Nf3 {[%clk 0:03:00]}  d5 {[%clk 0:03:00]} 2. b3 {[%clk 0:03:00]}  Bg4 {[%clk 0:02:58]} 3. Ne5 {[%clk 0:02:58]}  Bf5 {[%clk 0:02:58]} 4. Bb2 {[%clk 0:02:59]}  Nd7 {[%clk 0:02:59]} 5. Nxd7 {[%clk 0:02:52]}  Qxd7 {[%clk 0:03:00]} 6. d3 {[%clk 0:02:51]}  Nf6 {[%clk 0:02:59]} 7. Nd2 {[%clk 0:02:51]}  e6 {[%clk 0:02:59]} 8. g3 {[%clk 0:02:51]}  h5 {[%clk 0:02:53]} 9. h3 {[%clk 0:02:48]}  Bd6 {[%clk 0:02:48]} 10. Bg2 {[%clk 0:02:47]}  e5 {[%clk 0:02:48]} 11. e4 {[%clk 0:02:45]}  dxe4 {[%clk 0:02:47]} 12. dxe4 {[%clk 0:02:45]}  Be6 {[%clk 0:02:47]} 13. Qe2 {[%clk 0:02:44]}  O-O-O {[%clk 0:02:46]} 14. O-O-O {[%clk 0:02:44]}  Qc6 {[%clk 0:02:47]} 15. f4 {[%clk 0:02:39]}  Qc5 {[%clk 0:02:44]} 16. Nf3 {[%clk 0:02:33]}  Be7 {[%clk 0:02:23]} 17. Nxe5 {[%clk 0:02:26]}  g6 {[%clk 0:01:36]} 18. Nd3 {[%clk 0:02:17]}  Qa5 {[%clk 0:01:35]} 19. Kb1 {[%clk 0:02:04]}  Rhe8 {[%clk 0:01:35]} 20. Qe1 {[%clk 0:01:53]}  Qa6 {[%clk 0:01:30]} 21. Qf2 {[%clk 0:01:41]}  Qb6 {[%clk 0:01:22]} 22. Qxb6 {[%clk 0:01:39]}  axb6 {[%clk 0:01:23]} 23. Rhe1 {[%clk 0:01:34]}  Nd7 {[%clk 0:01:21]} 24. Bc3 {[%clk 0:01:27]}  Nc5 {[%clk 0:01:18]} 25. Kb2 {[%clk 0:01:22]}  Na6 {[%clk 0:01:10]} 26. a3 {[%clk 0:01:21]}  Rd7 {[%clk 0:01:08]} 27. Ne5 {[%clk 0:01:20]}  Rxd1 {[%clk 0:01:07]} 28. Rxd1 {[%clk 0:01:21]}  Nc5 {[%clk 0:01:08]} 29. Nd3 {[%clk 0:01:14]}  Nd7 {[%clk 0:01:05]} 30. Rf1 {[%clk 0:01:12]}  f6 {[%clk 0:00:35]} 31. f5 {[%clk 0:01:06]}  Bf7 {[%clk 0:00:35]} 32. Nf4 {[%clk 0:01:00]}  g5 {[%clk 0:00:33]} 33. Ng6 {[%clk 0:00:50]}  Bd6 {[%clk 0:00:31]} 34. g4 {[%clk 0:00:45]}  hxg4 {[%clk 0:00:26]} 35. hxg4 {[%clk 0:00:46]}  Bxg6 {[%clk 0:00:27]} 36. fxg6 {[%clk 0:00:46]}  Rg8 {[%clk 0:00:27]} 37. Bxf6 {[%clk 0:00:45]}  Nxf6 {[%clk 0:00:27]} 38. Rf5 {[%clk 0:00:43]}  Nd7 {[%clk 0:00:13]} 39. Rxg5 {[%clk 0:00:41]}  Bf4 {[%clk 0:00:11]} 40. Rf5 {[%clk 0:00:39]}  Be5+ {[%clk 0:00:12]} 41. Ka2 {[%clk 0:00:39]}  Rxg6 {[%clk 0:00:12]} 42. g5 {[%clk 0:00:39]}  Kd8 {[%clk 0:00:11]} 43. Bh3 {[%clk 0:00:40]}  Rg7 {[%clk 0:00:09]} 44. g6 {[%clk 0:00:40]}  Rxg6 {[%clk 0:00:07]} 45. Rh5 {[%clk 0:00:40]}  Bg7 {[%clk 0:00:05]} 46. Rd5 {[%clk 0:00:38]}  Rd6 {[%clk 0:00:05]} 47. Rxd6 {[%clk 0:00:36]}  cxd6 {[%clk 0:00:05]} 48. c4 {[%clk 0:00:37]}  Nc5 {[%clk 0:00:05]} 49. Bf5 {[%clk 0:00:36]}  Kc7 {[%clk 0:00:05]} 50. b4 {[%clk 0:00:37]}  Nd3 {[%clk 0:00:05]} 51. Kb3 {[%clk 0:00:37]}  Be5 {[%clk 0:00:05]} 52. a4 {[%clk 0:00:37]}  Nf4 {[%clk 0:00:04]} 53. a5 {[%clk 0:00:36]}  bxa5 {[%clk 0:00:03]} 54. bxa5 {[%clk 0:00:37]}  Nd3 {[%clk 0:00:03]} 55. Ka4 {[%clk 0:00:37]}  Nc5+ {[%clk 0:00:04]} 56. Kb5 {[%clk 0:00:38]}  Na6 {[%clk 0:00:04]} 57. Be6 {[%clk 0:00:37]}  Kb8 {[%clk 0:00:03]} 58. Bd5 {[%clk 0:00:36]}  Ka7 {[%clk 0:00:03]} 59. Bf7 {[%clk 0:00:35]}  Bc3 {[%clk 0:00:03]} 60. Bg6 {[%clk 0:00:30]}  Nc7+ {[%clk 0:00:03]} 61. Ka4 {[%clk 0:00:30]}  Ka6 {[%clk 0:00:03]} 62. Be8 {[%clk 0:00:30]}  Bxa5 {[%clk 0:00:03]} 63. Bd7 {[%clk 0:00:30]}  Bc3 {[%clk 0:00:03]} 64. Bg4 {[%clk 0:00:29]}  Kb6 {[%clk 0:00:03]} 65. Be2 {[%clk 0:00:30]}  Kc5 {[%clk 0:00:03]} 66. Kb3 {[%clk 0:00:31]}  Be5 {[%clk 0:00:03]} 67. Bd3 {[%clk 0:00:31]}  b6 {[%clk 0:00:04]} 68. Bc2 {[%clk 0:00:30]}  Ne6 {[%clk 0:00:05]} 69. Bd3 {[%clk 0:00:30]}  Nd4+ {[%clk 0:00:06]} 70. Ka4 {[%clk 0:00:30]}  Nc6 {[%clk 0:00:06]} 71. Kb3 {[%clk 0:00:30]}  Na5+ {[%clk 0:00:07]} 72. Ka4 {[%clk 0:00:30]}  Nxc4 {[%clk 0:00:08]} 73. Kb3 {[%clk 0:00:30]}  Na5+ {[%clk 0:00:08]} 74. Kc2 {[%clk 0:00:31]}  b5 {[%clk 0:00:08]} 75. Be2 {[%clk 0:00:32]}  b4 {[%clk 0:00:08]} 0-1


[Site "https://www.chess.com"]

[Event "Titled Tuesday Blitz June 14 Late 2022"]
[White "Guzman, Christopher"]
[Black "Adewumi, Tanitoluwa"]
[WhiteFideId "6405096"]
[BlackFideId "30966396"]
[WhiteElo "2244"]
[BlackElo "2478"]
[Result "0-1"]
[Round "09"]
[TimeControl "180+1"]
[Date "2022.06.15"]
[WhiteClock "0:00:14"]
[BlackClock "0:00:06"]

1. e4 {[%clk 0:02:13]}  c5 {[%clk 0:02:48]} 2. Nf3 {[%clk 0:02:13]}  e6 {[%clk 0:02:48]} 3. d4 {[%clk 0:02:14]}  cxd4 {[%clk 0:02:46]} 4. Nxd4 {[%clk 0:02:15]}  Nc6 {[%clk 0:02:42]} 5. Nc3 {[%clk 0:02:14]}  Qc7 {[%clk 0:02:41]} 6. g3 {[%clk 0:02:15]}  a6 {[%clk 0:02:41]} 7. Bg2 {[%clk 0:02:15]}  d6 {[%clk 0:02:41]} 8. O-O {[%clk 0:02:15]}  Be7 {[%clk 0:02:41]} 9. a4 {[%clk 0:02:15]}  Bd7 {[%clk 0:02:38]} 10. Nb3 {[%clk 0:02:15]}  Nf6 {[%clk 0:02:34]} 11. a5 {[%clk 0:02:15]}  O-O {[%clk 0:02:31]} 12. Be3 {[%clk 0:02:15]}  Rfc8 {[%clk 0:02:26]} 13. f4 {[%clk 0:02:11]}  Kh8 {[%clk 0:02:13]} 14. Bb6 {[%clk 0:02:10]}  Qb8 {[%clk 0:02:13]} 15. g4 {[%clk 0:02:10]}  Bd8 {[%clk 0:02:09]} 16. g5 {[%clk 0:02:10]}  Bxb6+ {[%clk 0:01:56]} 17. axb6 {[%clk 0:02:11]}  Ne8 {[%clk 0:01:52]} 18. Qh5 {[%clk 0:02:11]}  Nd8 {[%clk 0:01:42]} 19. Rf3 {[%clk 0:02:08]}  Kg8 {[%clk 0:01:16]} 20. Rh3 {[%clk 0:02:07]}  Kf8 {[%clk 0:01:16]} 21. Qxh7 {[%clk 0:02:07]}  Ke7 {[%clk 0:01:15]} 22. Rg3 {[%clk 0:02:03]}  d5 {[%clk 0:01:09]} 23. exd5 {[%clk 0:01:59]}  Qxf4 {[%clk 0:01:08]} 24. dxe6 {[%clk 0:01:58]}  Bxe6 {[%clk 0:01:04]} 25. Rf1 {[%clk 0:01:54]}  Qe5 {[%clk 0:00:53]} 26. Kh1 {[%clk 0:01:42]}  Rc4 {[%clk 0:00:39]} 27. Nd2 {[%clk 0:01:24]}  Rf4 {[%clk 0:00:32]} 28. Rgf3 {[%clk 0:01:03]}  Rxf3 {[%clk 0:00:18]} 29. Nxf3 {[%clk 0:01:04]}  Qc5 {[%clk 0:00:15]} 30. g6 {[%clk 0:01:02]}  f6 {[%clk 0:00:14]} 31. Re1 {[%clk 0:01:00]}  Rc8 {[%clk 0:00:14]} 32. Ne4 {[%clk 0:00:56]}  Qxc2 {[%clk 0:00:12]} 33. Nd4 {[%clk 0:00:51]}  Qxb2 {[%clk 0:00:08]} 34. Nxe6 {[%clk 0:00:51]}  Rc1 {[%clk 0:00:06]} 35. Qh4 {[%clk 0:00:48]}  Nxe6 {[%clk 0:00:07]} 36. Bh3 {[%clk 0:00:40]}  Rxe1+ {[%clk 0:00:04]} 37. Qxe1 {[%clk 0:00:41]}  Qxb6 {[%clk 0:00:04]} 38. Nc5 {[%clk 0:00:36]}  Qc6+ {[%clk 0:00:04]} 39. Bg2 {[%clk 0:00:35]}  Qxc5 {[%clk 0:00:04]} 40. h4 {[%clk 0:00:34]}  Nd6 {[%clk 0:00:05]} 41. Qb1 {[%clk 0:00:34]}  b5 {[%clk 0:00:04]} 42. Qa1 {[%clk 0:00:33]}  Qb6 {[%clk 0:00:03]} 43. Qa2 {[%clk 0:00:33]}  a5 {[%clk 0:00:03]} 44. Bh3 {[%clk 0:00:33]}  Nc5 {[%clk 0:00:03]} 45. Qe2+ {[%clk 0:00:33]}  Nde4 {[%clk 0:00:04]} 46. Bf5 {[%clk 0:00:33]}  Qd6 {[%clk 0:00:04]} 47. Bxe4 {[%clk 0:00:32]}  Qe5 {[%clk 0:00:05]} 48. Qxb5 {[%clk 0:00:30]}  Qxe4+ {[%clk 0:00:05]} 49. Kh2 {[%clk 0:00:30]}  Qe5+ {[%clk 0:00:05]} 50. Kh3 {[%clk 0:00:19]}  Nd7 {[%clk 0:00:06]} 51. Qb7 {[%clk 0:00:18]}  Qe6+ {[%clk 0:00:06]} 52. Kh2 {[%clk 0:00:17]}  a4 {[%clk 0:00:06]} 53. Qa7 {[%clk 0:00:17]}  Qd6+ {[%clk 0:00:07]} 54. Kh3 {[%clk 0:00:17]}  a3 {[%clk 0:00:08]} 55. Kg4 {[%clk 0:00:16]}  Qe6+ {[%clk 0:00:05]} 56. Kg3 {[%clk 0:00:15]}  a2 {[%clk 0:00:06]} 57. Kf3 {[%clk 0:00:15]}  Qd5+ {[%clk 0:00:06]} 58. Kf2 {[%clk 0:00:14]}  Qc5+ {[%clk 0:00:06]} 0-1


[Site "https://www.chess.com"]

[Event "Titled Tuesday Blitz June 14 Late 2022"]
[White "Hjartarson, Johann"]
[Black "D`Arruda, Ricardo D."]
[WhiteFideId "2300044"]
[BlackFideId "100692"]
[WhiteElo "2458"]
[BlackElo "2516"]
[Result "1-0"]
[Round "09"]
[TimeControl "180+1"]
[Date "2022.06.14"]
[WhiteClock "0:00:09"]
[BlackClock "0:00:25"]

1. e4 {[%clk 0:03:00]}  c5 {[%clk 0:02:54]} 2. Nf3 {[%clk 0:03:00]}  Nc6 {[%clk 0:02:53]} 3. Nc3 {[%clk 0:02:57]}  Nf6 {[%clk 0:02:50]} 4. Bb5 {[%clk 0:02:55]}  e6 {[%clk 0:02:43]} 5. O-O {[%clk 0:02:51]}  Be7 {[%clk 0:02:41]} 6. e5 {[%clk 0:02:49]}  Nd5 {[%clk 0:02:41]} 7. Nxd5 {[%clk 0:02:44]}  exd5 {[%clk 0:02:42]} 8. d3 {[%clk 0:02:37]}  a6 {[%clk 0:02:36]} 9. Bxc6 {[%clk 0:02:37]}  dxc6 {[%clk 0:02:36]} 10. h3 {[%clk 0:02:37]}  O-O {[%clk 0:02:33]} 11. Re1 {[%clk 0:02:35]}  h6 {[%clk 0:02:32]} 12. b3 {[%clk 0:02:32]}  c4 {[%clk 0:02:25]} 13. Bb2 {[%clk 0:02:16]}  cxd3 {[%clk 0:02:22]} 14. cxd3 {[%clk 0:02:16]}  Be6 {[%clk 0:02:14]} 15. Rc1 {[%clk 0:02:12]}  c5 {[%clk 0:02:11]} 16. Qe2 {[%clk 0:01:49]}  b5 {[%clk 0:02:10]} 17. Nh2 {[%clk 0:01:39]}  Qd7 {[%clk 0:02:03]} 18. f4 {[%clk 0:01:34]}  a5 {[%clk 0:01:43]} 19. g4 {[%clk 0:01:15]}  g6 {[%clk 0:01:42]} 20. Nf3 {[%clk 0:01:10]}  a4 {[%clk 0:01:39]} 21. Rf1 {[%clk 0:01:06]}  axb3 {[%clk 0:01:37]} 22. axb3 {[%clk 0:01:05]}  Ra2 {[%clk 0:01:37]} 23. Ra1 {[%clk 0:01:00]}  Rfa8 {[%clk 0:01:36]} 24. Qg2 {[%clk 0:00:45]}  Kh7 {[%clk 0:01:16]} 25. Rxa2 {[%clk 0:00:27]}  Rxa2 {[%clk 0:01:13]} 26. f5 {[%clk 0:00:27]}  gxf5 {[%clk 0:01:08]} 27. gxf5 {[%clk 0:00:27]}  Bxf5 {[%clk 0:01:09]} 28. e6 {[%clk 0:00:19]}  Rxb2 {[%clk 0:01:07]} 29. exd7 {[%clk 0:00:16]}  Rxg2+ {[%clk 0:01:06]} 30. Kxg2 {[%clk 0:00:16]}  Bxd7 {[%clk 0:01:07]} 31. Ne5 {[%clk 0:00:17]}  Be6 {[%clk 0:01:03]} 32. Nxf7 {[%clk 0:00:17]}  d4 {[%clk 0:01:02]} 33. Ne5 {[%clk 0:00:05]}  Bxb3 {[%clk 0:00:59]} 34. Rb1 {[%clk 0:00:05]}  Bd5+ {[%clk 0:00:58]} 35. Kg3 {[%clk 0:00:05]}  Bd6 {[%clk 0:00:57]} 36. Kf4 {[%clk 0:00:04]}  b4 {[%clk 0:00:55]} 37. Kf5 {[%clk 0:00:04]}  b3 {[%clk 0:00:54]} 38. h4 {[%clk 0:00:04]}  Be7 {[%clk 0:00:43]} 39. h5 {[%clk 0:00:03]}  Bg5 {[%clk 0:00:44]} 40. Nc4 {[%clk 0:00:03]}  Bxc4 {[%clk 0:00:38]} 41. dxc4 {[%clk 0:00:03]}  d3 {[%clk 0:00:38]} 42. Rxb3 {[%clk 0:00:04]}  d2 {[%clk 0:00:38]} 43. Rd3 {[%clk 0:00:04]}  Kg7 {[%clk 0:00:38]} 44. Rd7+ {[%clk 0:00:04]}  Kf8 {[%clk 0:00:38]} 45. Ke6 {[%clk 0:00:04]}  Ke8 {[%clk 0:00:36]} 46. Rd5 {[%clk 0:00:04]}  Be3 {[%clk 0:00:33]} 47. Kf5 {[%clk 0:00:05]}  Ke7 {[%clk 0:00:31]} 48. Ke4 {[%clk 0:00:05]}  Bg5 {[%clk 0:00:30]} 49. Kf3 {[%clk 0:00:05]}  Ke6 {[%clk 0:00:26]} 50. Ke2 {[%clk 0:00:06]}  Be7 {[%clk 0:00:25]} 51. Kxd2 {[%clk 0:00:05]}  Bd6 {[%clk 0:00:25]} 52. Kd3 {[%clk 0:00:06]}  Be7 {[%clk 0:00:26]} 53. Ke4 {[%clk 0:00:07]}  Bf8 {[%clk 0:00:26]} 54. Re5+ {[%clk 0:00:08]}  Kf6 {[%clk 0:00:25]} 55. Rf5+ {[%clk 0:00:08]}  Ke7 {[%clk 0:00:25]} 56. Rxf8 {[%clk 0:00:08]}  Kxf8 {[%clk 0:00:25]} 57. Kd5 {[%clk 0:00:09]} 1-0


[Site "https://www.chess.com"]

[Event "Titled Tuesday Blitz June 14 Late 2022"]
[White "Janaszak, Dawid"]
[Black "Barria Zuniga, Daniel"]
[WhiteFideId "1119206"]
[BlackFideId "3400816"]
[WhiteElo "2199"]
[BlackElo "2414"]
[Result "0-1"]
[Round "09"]
[TimeControl "180+1"]
[Date "2022.06.15"]
[WhiteClock "0:00:01"]
[BlackClock "0:00:06"]

1. e4 {[%clk 0:03:00]}  g6 {[%clk 0:02:58]} 2. Nc3 {[%clk 0:02:59]}  Bg7 {[%clk 0:02:58]} 3. Bc4 {[%clk 0:02:59]}  c5 {[%clk 0:02:56]} 4. h4 {[%clk 0:02:59]}  h5 {[%clk 0:02:54]} 5. Qf3 {[%clk 0:02:58]}  e6 {[%clk 0:02:54]} 6. d4 {[%clk 0:02:58]}  cxd4 {[%clk 0:02:52]} 7. Nb5 {[%clk 0:02:58]}  d6 {[%clk 0:02:52]} 8. Bf4 {[%clk 0:02:57]}  Be5 {[%clk 0:02:46]} 9. Bxe5 {[%clk 0:02:57]}  dxe5 {[%clk 0:02:45]} 10. Qa3 {[%clk 0:02:58]}  Ne7 {[%clk 0:02:37]} 11. Nd6+ {[%clk 0:02:53]}  Kf8 {[%clk 0:02:36]} 12. Nf3 {[%clk 0:02:49]}  Kg7 {[%clk 0:02:26]} 13. Nxe5 {[%clk 0:02:40]}  Rf8 {[%clk 0:02:23]} 14. O-O-O {[%clk 0:02:25]}  Nec6 {[%clk 0:02:14]} 15. f4 {[%clk 0:02:15]}  Nxe5 {[%clk 0:02:12]} 16. fxe5 {[%clk 0:02:16]}  Nc6 {[%clk 0:02:12]} 17. Rhf1 {[%clk 0:01:48]}  Qxh4 {[%clk 0:02:08]} 18. Kb1 {[%clk 0:01:12]}  Qg5 {[%clk 0:02:04]} 19. Rf2 {[%clk 0:00:54]}  Qxe5 {[%clk 0:02:03]} 20. Rdf1 {[%clk 0:00:52]}  Nd8 {[%clk 0:01:31]} 21. Bd3 {[%clk 0:00:31]}  b6 {[%clk 0:01:26]} 22. Nc4 {[%clk 0:00:31]}  Qc5 {[%clk 0:01:25]} 23. b4 {[%clk 0:00:29]}  Qe7 {[%clk 0:01:25]} 24. e5 {[%clk 0:00:25]}  Bb7 {[%clk 0:01:19]} 25. Qb2 {[%clk 0:00:25]}  Bd5 {[%clk 0:01:16]} 26. Nd6 {[%clk 0:00:20]}  Nc6 {[%clk 0:01:13]} 27. Rxf7+ {[%clk 0:00:20]}  Rxf7 {[%clk 0:01:12]} 28. Rxf7+ {[%clk 0:00:21]}  Qxf7 {[%clk 0:01:13]} 29. Nxf7 {[%clk 0:00:21]}  Kxf7 {[%clk 0:01:14]} 30. b5 {[%clk 0:00:22]}  Nxe5 {[%clk 0:01:13]} 31. Qxd4 {[%clk 0:00:22]}  Nxd3 {[%clk 0:01:13]} 32. cxd3 {[%clk 0:00:19]}  Rf8 {[%clk 0:01:07]} 33. g3 {[%clk 0:00:18]}  Kg8 {[%clk 0:01:05]} 34. Qe5 {[%clk 0:00:17]}  Rf7 {[%clk 0:01:05]} 35. Qg5 {[%clk 0:00:16]}  Kg7 {[%clk 0:01:04]} 36. a4 {[%clk 0:00:16]}  Rf5 {[%clk 0:00:57]} 37. Qe7+ {[%clk 0:00:16]}  Rf7 {[%clk 0:00:58]} 38. Qg5 {[%clk 0:00:16]}  Kh7 {[%clk 0:00:55]} 39. Kb2 {[%clk 0:00:16]}  Bf3 {[%clk 0:00:53]} 40. Kc3 {[%clk 0:00:14]}  Bg4 {[%clk 0:00:52]} 41. Qd8 {[%clk 0:00:13]}  Bf5 {[%clk 0:00:51]} 42. Kd4 {[%clk 0:00:13]}  e5+ {[%clk 0:00:41]} 43. Kxe5 {[%clk 0:00:11]}  Rd7 {[%clk 0:00:42]} 44. Qe8 {[%clk 0:00:08]}  Rxd3 {[%clk 0:00:36]} 45. Qe7+ {[%clk 0:00:08]}  Kh6 {[%clk 0:00:34]} 46. Qxa7 {[%clk 0:00:09]}  Kg5 {[%clk 0:00:26]} 47. Qxb6 {[%clk 0:00:05]}  Kg4 {[%clk 0:00:24]} 48. Qf2 {[%clk 0:00:03]}  Rxg3 {[%clk 0:00:21]} 49. b6 {[%clk 0:00:02]}  Rf3 {[%clk 0:00:06]} 50. Qe3 {[%clk 0:00:02]}  Rxe3+ {[%clk 0:00:06]} 51. Kd4 {[%clk 0:00:01]}  Rb3 {[%clk 0:00:06]} 0-1


[Site "https://www.chess.com"]